Cogmind - Beta 17 *** ADVENTURER MODE // 2026.06.29 @ 17:09:18 Player: ginkogruen Result: Destroyed by D-53 Grenadier with Mini Grenade Launcher Performance ------------- Evolutions (0) 0 Regions Visited (4) 800 Robots Destroyed (14) 70 Value Destroyed (393) 393 Prototype IDs (2) 40 Alien Tech Used (0) 0 Bonus (44) 44 TOTAL SCORE: 1347 Bonus ------- Follower Combat Kills 60 Friendly Fire -16 Cogmind --------- Core Integrity 0/250 Matter 225/300 Energy 100/100 System Corruption 0% Temperature Cool (0) Movement Core (350) Ox6 Location -9/Mines Parts ------- > --- POWER (1) -------- (None) > --- PROPULSION (2) --- (None) > --- UTILITY (2) ------ Large Storage Unit Structural Scanner > --- WEAPON (2) ------- (None) > --- INVENTORY (15) --- Sensor Array ECM Suite Mining Laser Blade Trap Blade Trap Peak State ------------ > --- POWER ------------ (None) > --- PROPULSION ------- Light Treads Light Treads > --- UTILITY ---------- Large Storage Unit Sensor Array > --- WEAPON ----------- Subdweller Beam Cannon Assault Rifle > --- INVENTORY -------- Light Ion Engine Small Storage Unit Huge Storage Unit Large Battery Structural Scanner ECM Suite ECM Suite Weapon Shielding Medium Laser Light Assault Rifle Welding Torch Scrap Shield Fragment [Rating: 8] Favorites ----------- Power Light Ion Engine Engine Light Ion Engine Propulsion Light Treads Treads Light Treads Hover Unit Backup Propulsion I Flight Unit Flight Unit Utility Sensor Array Device Sensor Array Storage Small Storage Unit Processor Signal Interpreter Weapon Assault Rifle Energy Gun EM Pulse Gun Energy Cannon Subdweller Beam Cannon Ballistic Gun Assault Rifle Launcher Mini Grenade Launcher Special Weapon Welding Torch Build | -11 -10 -10 -10 -9 ------- Run | Yrd Mat Min Exi Min Slots Evolved . | . . . . . Power . | . . . . . Propulsion . | . . . . . Utility . | . . . . . Weapon . | . . . . . Parts Attached 16 | 6 7 2 . 1 Power 2 | 1 1 . . . Engine 2 | 1 1 . . . Core . | . . . . . Reactor . | . . . . . Propulsion 3 | 2 . 1 . . Treads 2 | 2 . . . . Leg . | . . . . . Wheel . | . . . . . Hover . | . . . . . Flight 1 | . . 1 . . Utility 6 | 1 4 . . 1 Device 2 | . 1 . . 1 Storage 3 | 1 2 . . . Processor 1 | . 1 . . . Hackware . | . . . . . Protection . | . . . . . Artifact . | . . . . . Weapon 5 | 2 2 1 . . Energy Gun 1 | 1 . . . . Energy Cannon 1 | . 1 . . . Ballistic Gun 1 | 1 . . . . Ballistic Cannon . | . . . . . Launcher 1 | . . 1 . . Special Weapon 1 | . 1 . . . Impact Weapon . | . . . . . Slashing Weapon . | . . . . . Piercing Weapon . | . . . . . Special Melee Weapon . | . . . . . Unidentified Prototypes . | . . . . . Parts Lost 7 | . 2 . . 5 Power 2 | . 1 . . 1 Propulsion 2 | . . . . 2 Utility . | . . . . . Weapon 3 | . 1 . . 2 Highest Loss Streak 4 | . 1 . . 4 To Critical Strikes . | . . . . . Average Backups 4 | 4 7 3 3 3 Power . | . . . . . Propulsion . | 2 1 . . . Utility 2 | . 3 3 3 2 Weapon . | . 1 . . . Tool/Special . | . . . . . Unused Backups 13 | . 11 . . 2 Power . | . . . . . Propulsion 5 | . 5 . . . Utility 5 | . 4 . . 1 Weapon 3 | . 2 . . 1 Tool/Special . | . . . . . Average Slot Usage (%) 90 | . 86 79 100 88 Engine 12 | . 10 14 14 13 Treads 10 | . 24 . . . Hover 6 | . 1 14 14 3 Flight 7 | . . 3 14 13 Device 11 | . 8 14 14 14 Storage 6 | . 10 . . 10 Processor 7 | . 3 14 14 3 Energy Gun 2 | . 6 . . . Energy Cannon 1 | . 3 . . . Ballistic Gun 13 | . 14 14 14 13 Launcher 7 | . . 4 14 14 Peak Build Rating 8 | 6 8 8 8 8 Average Rating 6 | 4 6 5 8 7 On Entrance 5 | . 6 5 8 8 Avg Prop Armor Cover (%) 4 | . . 4 4 4 Naked Turns . | . . . . . Heaviest Build 31 | 14 31 7 7 27 Greatest Support 40 | 40 40 6 6 6 Greatest Overweight (x) 8 | . . 1 1 8 Average Overweight (x) . | . . . 1 4 Largest Inventory Capacity 25 | 8 25 5 5 15 Average Capacity 8 | 7 8 5 5 12 Most Carried 14 | 8 14 4 3 5 Average Carried 5 | 4 7 3 3 4 Final Capacity 15 | 8 5 5 5 15 Final Carried 6 | 6 4 3 3 5 Class Distribution -------------------- 100% | Mutant Dominant Class ---------------- Mutant | -10/Materials Mutant | -10/Mines Mutant | -10/Exiles Mutant | -9/Mines Resources | -11 -10 -10 -10 -9 ----------- Run | Yrd Mat Min Exi Min Matter Collected 518 | 179 262 . . 77 Remotely . | . . . . . Salvage Created 421 | . 322 20 . 79 Parts 25 | . 22 1 . 2 Haulers Intercepted . | . . . . . Recyclers Shooed 1 | . . . . 1 Parts Field Recycled . | . . . . . Retrieved Matter . | . . . . . Parts Self-Destructed . | . . . . . Prevented . | . . . . . Parts Restored . | . . . . . Kills | -11 -10 -10 -10 -9 ------- Run | Yrd Mat Min Exi Min Combat Hostiles Destroyed 13 | . 8 2 . 3 Guns 9 | . 8 1 . . AOE 4 | . . 1 . 3 Classes Destroyed 4 | . 3 . . 1 Recycler 1 | . 1 . . . Swarmer 5 | . 3 2 . . Grunt 7 | . 5 . . 2 Demolisher 1 | . . . . 1 Best Kill Streak 3 | . 3 2 . 1 Combat Bots Only 3 | . 3 2 . 1 Max Kills in Single Turn 1 | . 1 1 . 1 Gunslinging . | . . . . . Exploded 1 | . . 1 . 1 Melee . | . . . . . Uniques/NPCs Destroyed . | . . . . . Combat | -11 -10 -10 -10 -9 -------- Run | Yrd Mat Min Exi Min Hostile Shots Fired 60 | . 40 8 . 12 Missed 14 | . 12 2 . . Hits 46 | . 28 6 . 12 Melee 1 | . . . . 1 Projectile 45 | . 28 6 . 11 AOE 11 | . . . . 11 Critical Strikes 1 | . 1 . . . Damage Taken 794 | . 293 60 . 441 Core 256 | . 69 5 . 182 Absorbed by Shields . | . . . . . Ignored by Resistances 230 | . 90 18 . 122 Regen/Repaired (Parts) 96 | . 96 . . . Core Remaining (%) 100 | 100 . . . . Volleys Fired 33 | . 22 2 . 9 Largest 2 | . 2 2 . 2 Hottest 100 | . 100 50 . 50 Shots Fired 63 | . 43 4 . 16 Gun 46 | . 37 2 . 7 Cannon 6 | . 6 . . . Launcher 11 | . . 2 . 9 Special . | . . . . . Kinetic 31 | . 22 2 . 7 Thermal 6 | . 6 . . . Explosive 11 | . . 2 . 9 Electromagnetic 15 | . 15 . . . Robot Hit Streak 11 | . 8 2 . 11 Robot Miss Streak 4 | . 4 1 . 2 Penetration Max . | . . . . . Secondary Targets 2 | . 2 . . . Max Gunslinging Chain 1 | . 1 . . . Shots Hit Robots 42 | . 27 2 . 13 Core Hits 26 | . 11 2 . 13 Critical Kills . | . . . . . Critical Parts Destroyed . | . . . . . Critical Strikes . | . . . . . Melee Attacks . | . . . . . Impact . | . . . . . Slashing . | . . . . . Piercing . | . . . . . Sneak Attacks . | . . . . . Combat Hostiles . | . . . . . Follow-up Attacks . | . . . . . Damage Inflicted 856 | . 464 103 . 289 Guns 376 | . 304 11 . 61 Cannons 107 | . 107 . . . Explosions 373 | . 53 92 . 228 Melee . | . . . . . Ramming . | . . . . . Kinetic 212 | . 140 11 . 61 Thermal 160 | . 160 . . . Explosive 320 | . . 92 . 228 Electromagnetic 164 | . 164 . . . Impact . | . . . . . Slashing . | . . . . . Piercing . | . . . . . Highest Corruption . | . . . . . Average Corruption . | . . . . . Corruption Purged . | . . . . . Corruption Blocked . | . . . . . Overload Shots . | . . . . . Overflow Damage 24 | . . 11 . 13 Projectiles . | . . . . . Explosions 24 | . . 11 . 13 Melee . | . . . . . Knockbacks . | . . . . . Impact . | . . . . . Kinetic . | . . . . . Secondary . | . . . . . Self-Inflicted Damage 115 | . 31 23 . 61 Shots 6 | . 1 1 . 4 Rammed . | . . . . . Targets Rammed . | . . . . . Kicked . | . . . . . Crushed . | . . . . . Highest Temperature 198 | . 198 . . . Average Temperature 56 | . 56 . . . Received Heat Transfer 123 | . 123 . . . Siege Activations . | . . . . . Martial Activations . | . . . . . Shielding Activations . | . . . . . Robots Disrupted . | . . . . . Combat Hostiles . | . . . . . Robots Corrupted . | . . . . . Combat Hostiles . | . . . . . Parts Fried . | . . . . . Impact Corruptions . | . . . . . Robots Melted . | . . . . . Combat Hostiles . | . . . . . Parts Melted . | . . . . . Heat Transferred 248 | . 248 . . . Parts Sabotaged . | . . . . . Parts Stolen . | . . . . . Parts Stripped . | . . . . . Power Chain Reactions 1 | . 1 . . . Alert | -11 -10 -10 -10 -9 ------- Run | Yrd Mat Min Exi Min Maximum Alert Level . | . . . . . Low Security (%) 100 | 100 100 100 . 100 Level 1 . | . . . . . Level 2 . | . . . . . Level 3 . | . . . . . Level 4 . | . . . . . Level 5 . | . . . . . High Security . | . . . . . Max Security . | . . . . . Peak Influence 71 | . 69 71 . 70 Initial . | . . . . . Average 9 | . 8 17 . 10 Influence Increases 490 | . 240 71 . 179 Destroy 0b10 Robot/C 300 | . 160 40 . 100 Destroy 0b10 Robot/NC 5 | . 5 . . . Destroy Leader 70 | . 40 . . 30 Allied During Kill 2 | . . . . 2 Successful Hack 10 | . 10 . . . Disable Machine 18 | . 18 . . . Destroy Structure 70 | . 7 16 . 47 Lose Combat Pursuer 15 | . . 15 . . Influence Decreases 478 | . 240 40 31 167 Entered New Map 31 | . . . 31 . Time Decay 407 | . 240 40 . 127 Lost Part 40 | . . . . 40 Squads Dispatched 2 | . 2 . . . Investigation 2 | . 2 . . . Extermination . | . . . . . Reinforcement . | . . . . . Assault . | . . . . . Garrison . | . . . . . Intercept . | . . . . . Searches Triggered . | . . . . . Construction Impeded . | . . . . . Haulers Reinforced . | . . . . . Active Scanning Responses . | . . . . . Cargo Convoy Interrupts . | . . . . . Stealth | -11 -10 -10 -10 -9 --------- Run | Yrd Mat Min Exi Min Distress Signals 2 | . 2 . . . Communications Jammed . | . . . . . Distress Signals . | . . . . . Times Spotted 22 | . 13 3 . 6 Peak Tracking Total 3 | . 3 3 . 2 Tactical Retreats 1 | . . 1 . . Traps | -11 -10 -10 -10 -9 ------- Run | Yrd Mat Min Exi Min Traps Triggered 2 | . 2 . . . Indirectly . | . . . . . Trap Hack Attempts . | . . . . . Triggered . | . . . . . Disarmed . | . . . . . Reprogrammed . | . . . . . Reused . | . . . . . Traps Extracted . | . . . . . Installed . | . . . . . Triggered . | . . . . . Most Traps Carried 2 | . . . . 2 Machines | -11 -10 -10 -10 -9 ---------- Run | Yrd Mat Min Exi Min Machines Disabled 2 | . 2 . . . Max in Single Turn 1 | . 1 . . . Machines Repaired . | . . . . . Machines Dismantled . | . . . . . Machines Sabotaged . | . . . . . Overloaded Fab Kills . | . . . . . Hacking | -11 -10 -10 -10 -9 --------- Run | Yrd Mat Min Exi Min Machines Accessed 11 | . 7 . 4 . Terminals 4 | . 4 . . . Fabricators . | . . . . . Repair Stations 1 | . 1 . . . Recycling Units 2 | . 2 . . . Scanalyzers . | . . . . . Garrison Access . | . . . . . Total Hacks 74 | . 25 . 49 . Successful 67 | . 18 . 49 . Failed 7 | . 7 . . . Catastrophic . | . . . . . Database Lockouts . | . . . . . Manual 2 | . . . 2 . Terminals 10 | . 10 . . . Fabricators . | . . . . . Repair Stations 8 | . 8 . . . Recycling Units 7 | . 7 . . . Scanalyzers . | . . . . . Garrison Access . | . . . . . Terminal Hacks 55 | . 6 . 49 . Record 52 | . 3 . 49 . Prototype ID Bank 1 | . 1 . . . Locate Traps 1 | . 1 . . . Recall Investigation 1 | . 1 . . . Fabricator Hacks . | . . . . . Repair Station Hacks 7 | . 7 . . . Scan Component 3 | . 3 . . . Repair 3 | . 3 . . . Refit 1 | . 1 . . . Recycling Unit Hacks 5 | . 5 . . . Process 1 | . 1 . . . Report Inventory 3 | . 3 . . . Retrieve Matter 1 | . 1 . . . Scanalyzer . | . . . . . Garrison Access Hacks . | . . . . . Unauthorized Hacks . | . . . . . Terminals . | . . . . . Fabricators . | . . . . . Repair Stations . | . . . . . Recycling Units . | . . . . . Scanalyzers . | . . . . . Garrison Access . | . . . . . Data Cores Recovered . | . . . . . Used . | . . . . . Hacking Detections 3 | . 3 . . . Full Trace Events 2 | . 2 . . . Feedback Events . | . . . . . Feedback Blocked . | . . . . . Robot Schematics Acquired . | . . . . . Robots Built . | . . . . . Authchips . | . . . . . Time . | . . . . . Total Robot Build Rating . | . . . . . Part Schematics Acquired . | . . . . . Parts Built . | . . . . . Authchips . | . . . . . Time . | . . . . . Total Part Build Rating . | . . . . . Part Studies Acquired . | . . . . . Parts Repaired 3 | . 3 . . . Time 84 | . 84 . . . Parts Recycled . | . . . . . Recycled Matter 116 | . 116 . . . Retrieved Matter 116 | . 116 . . . Retrieved Components . | . . . . . Parts Scanalyzed . | . . . . . Part Schematics Acquired . | . . . . . Parts Damaged . | . . . . . Bothacking | -11 -10 -10 -10 -9 ------------ Run | Yrd Mat Min Exi Min Used RIF Installer . | . . . . . Robots Hacked . | . . . . . Non-combat . | . . . . . Combat . | . . . . . Robot Hacks Applied . | . . . . . Relay Couplers Released . | . . . . . Fabnet Peak Effective % . | . . . . . Robots Rewired . | . . . . . Allies Hacked . | . . . . . Hacks Repelled . | . . . . . Allies | -11 -10 -10 -10 -9 -------- Run | Yrd Mat Min Exi Min Total Allies 1 | . . . . 1 Largest Group 1 | . . . . 1 Highest-Rated Group 31 | . . . . 31 Highest-Rated Ally 31 | . . . . 31 Total Orders . | . . . . . Ally Attacks 9 | . . . . 9 Total Damage 82 | . . . . 82 Kills 2 | . . . . 2 Allies Corrupted . | . . . . . Allies Melted . | . . . . . Intel | -11 -10 -10 -10 -9 ------- Run | Yrd Mat Min Exi Min Active Infowar (turns) 3010 | . 960 221 1030 799 Sensors 2449 | . 960 221 1030 238 Structural 561 | . . . . 561 Robot Analysis Total . | . . . . . Derelict Logs Recovered 2 | . . 1 . 1 Drone Launches . | . . . . . Drone Recoveries . | . . . . . Exploration | -11 -10 -10 -10 -9 ------------- Run | Yrd Mat Min Exi Min Turns Passed 3781 | 90 1641 221 1030 799 Spaces Moved 2247 | 49 1084 223 644 247 Core 101 | 5 . . . 96 Treads 874 | 44 830 . . . Legs . | . . . . . Wheels . | . . . . . Hover 1244 | . 254 223 644 123 Flight 28 | . . . . 28 Fastest Speed 50 | 50 80 80 160 150 Average Speed 160 | 148 141 95 160 311 Slowest Speed 520 | 160 160 160 160 520 Overloaded Moves . | . . . . . Propulsion Burnouts . | . . . . . Robots Hopped . | . . . . . Potential Cave-ins . | . . . . . Cave-ins Triggered . | . . . . . Exploration Rate (%) 55 | 3 91 29 91 61 Regions Visited 4 Branch Regions 3 Pre-discovered Areas 2 | . . . 1 1 Known Exits Taken 3 | . 1 1 1 . Unknown Exits Taken 1 | 1 . . . . Scrap Searched . | . . . . . Spaces Dug . | . . . . . Terrain Destroyed 90 | . 5 18 . 67 Melee . | . . . . . Projectile 1 | . 1 . . . AOE 89 | . 4 18 . 67 Terrain Rammed . | . . . . . Walls Destroyed . | . . . . . Machines Disabled . | . . . . . Actions | -11 -10 -10 -10 -9 --------- Run | Yrd Mat Min Exi Min Total 2355 | 66 1156 227 644 262 Wait 4 | . 4 . . . Move 2243 | 48 1083 222 643 247 Hop . | . . . . . Pick Up 33 | 12 17 1 . 3 Fast Attach . | . . . . . Attach 15 | 6 6 2 . 1 Detach 3 | . 2 . . 1 Swap 7 | . 6 . . 1 Drop 16 | . 16 . . . Fire 33 | . 22 2 . 9 Melee . | . . . . . Ram . | . . . . . Kick . | . . . . . Crush . | . . . . . Escape Stasis . | . . . . . Rewire 1 | . . . 1 . Trap . | . . . . . Miscellaneous . | . . . . . Route ------- -11/Scrapyard -10/Materials (discovered 4 exits: *Mat x3 / *Min) -10/Mines (discovered 2 exits: *Mat / *Exi) -10/Exiles -9/Mines (discovered 1 exit: *Mat) History --------- Turn | Location | Event 12 | -11/Scrapyard | Discovered new exit (range 15) 91 | -11/Scrapyard | Entered Materials 306 | -10/Materials | Build established: Mutant 691 | -10/Materials | Derelicts attacked the area 950 | -10/Materials | Discovered new exit (range 11) 974 | -10/Materials | Discovered new exit (range 16) 1318 | -10/Materials | Discovered new exit (range 16) 1340 | -10/Materials | Identified exit to Materials 1526 | -10/Materials | Repaired Sub. Beam Cannon 1526 | -10/Materials | Repaired Lgt. Treads 1552 | -10/Materials | Repaired Lgt. Treads? 1674 | -10/Materials | Discovered exit to Materials (range 13) 1731 | -10/Materials | Identified exit to Mines 1732 | -10/Materials | Entered Mines 1766 | -10/Mines | Met a Derelict bent on vengeance 1767 | -10/Mines | Learned Materials emergency access door positions 1797 | -10/Mines | Discovered exit to Materials (range 13) 1817 | -10/Mines | Deemed a non-threat by the Exiles lab entrance 1818 | -10/Mines | Discovered new exit (range 5) 1821 | -10/Mines | Identified exit to Exiles 1953 | -10/Mines | Entered Exiles 1995 | -10/Exiles | Met 8R-AWN 2027 | -10/Exiles | Met EX-HEX 2143 | -10/Exiles | Met EX-DEC 2153 | -10/Exiles | Learned location of Zion (-7) 2218 | -10/Exiles | Discovered new exit (range 12) 2236 | -10/Exiles | Identified exit to Mines 2400 | -10/Exiles | Visited The Gauntlet 2673 | -10/Exiles | Met EX-BIN 2983 | -10/Exiles | Entered Mines 3123 | -9/Mines | Found a hidden stash of uninstalled traps 3142 | -9/Mines | Discovered new exit (range 6) 3150 | -9/Mines | Identified exit to Materials 3174 | -9/Mines | Received a Mining Laser from a helpful Derelict 3745 | -9/Mines | Assembled infested the area 3771 | -9/Mines | Core integrity fell below 50% 3781 | -9/Mines | Core integrity fell below 20% 3782 | -9/Mines | Destroyed by D-53 Grenadier with Mini Grenade Launcher Last Messages --------------- 03307_ U-05 Engineer builds a Wall. 03339_ U-05 Engineer lays Concrete. 03340_ U-05 Engineer builds a Wall. 03445_ ZK-W1R(g): "You look like you can take it from here!" 03445_ ZK-W1R(g) slips back into the shadows. 03467_ Acquired derelict log, extracted data. World map updated: -9/Materials. 03745_ ALERT: Infestation in the mines, dispatching Demolisher response squad. 03769_ C-45 Heavy ARC bursts open, deploying its payload. 03769_ D-53 Grenadier unfolds itself. 03769_ Flight Unit destroyed. 03773_ D-53 Grenadier destroyed. 03776_ Lgt. Ion Engine destroyed. 03776_ Assault Rifle destroyed. 03779_ The unstable cave ceiling collapses. 03781_ Mni. Grenade Launcher destroyed. 03781_ Destroyed Mni. Grenade Launcher. Map ----- +----------------------------------------------------+ | | | | | | | | | | | | | | | | | | | | | | | | | ?????????????????????????????????????????????????? | | ??????????????????????????????????????????#####??? | | ?????????????????????????????????????????#######?? | | ?????????????????????????????????????????## ####? | | ???????????????????????????????????????### ###? | | ??????????????????????????????????????#### ### | | ?????????????????????????????????????#### ### | | ?????????????????????##########?????#### | | ?????????????## ##################?#### ##?? | | ?????????????## ####### ######### ###?? | | ?????????????## ##### ###??? | | ?????????????## ? ### ###???? | | ???????????????????## ####??? | | ???????????????????## @ ####?? | | ???????????????????### ###?? | | ???????????????????## ## #### | | ???????????????????## ### #### | | ???????????????????## d ##### # | | ???????????????????## ### ### # | | ???????????????????## ### #### #### # | | ???????????????????### ### #### ##### # | | ???? ??????????????#### # ############ # | | ???? ???????????????############ #######?## # | | ???? ???????????????############ #??????## # | | ???? ?????????????????????????##### #??????## # | | ???? ?????????????????????????##### #??????## | | ???? ?????????????????????????????# #??????## | | ???? ?????????????????????????????# #??????##### | | ?### #????????????????????????????? #??????##### | | ## ####????????????????????????### #??????????? | | # ###?????????????????????## ##?????????? | | #####?????????????????# #?????????? | | """ ?????????????????## ######?#### | | ? """ #??????????????????## #?#### | | ?# """ #?????????????????## ##### #?## | | ?# #????????????????## ##???# #### # | | ?# #???????????????## < ##???## #### # | | ?# #?????????### ### ####### ### | +----------------------------------------------------+ Best States ------------- Heat Dissipation 25 Energy Generation 10 Energy Capacity 250 Matter Stores 300 Matter Capacity 300 Sight Range 16 Robot Scan Range 14 Terrain Scan Density 10 Resistance: KI 20 Resistance: TH 20 Resistance: EX 20 Resistance: EM 20 Resistance: I 20 Resistance: S 20 Resistance: P 20 Evasion (%) 49 Recoil Reduction 2 Offensive Hacking 10 Item Schematics ----------------- None Robot Schematics ------------------ None Fabricated ------------ Nothing Repaired ---------- Lgt. Treads | 31% | -10/Materials Studied --------- None Alien Tech Used ----------------- None Achievements -------------- I Have A Map? Challenges ------------ None Game ------ Seed CoordinationRefineryMediator Manual? 0 Play Time 01:04:54 Cumulative 7.3 hours Start 2026.06.29 @ 13:38:00 End 2026.06.29 @ 17:09:18 Sessions 2 Manual Loads 0 Difficulty Adventurer Special Mode None Game No. 13 Rogue 8 Adventurer 5 Explorer 0 Win Type - Total 0 Types 0/0/0/0/0/0/0/0/0/0 Lore% 7 Gallery% 7 Achievement% 7 Wizard Run 0 Options --------- Layout 1 ASCII 1 Keyboard 1 Movement Vi Keybinds 0 Fullscreen 1 Font 32/SmallcapsGlow Map View 50x35 Zoom Use 0% Tactical HUD 1 Map Filters NONE Filters NONE Steam 1 RUN: cbe175f4-3ff5-4d27-84e2-6fd496d00096